bitfinex/quotes_SOLUSD_20250724
["timestamp","ask_amount","ask_price","bid_price","bid_amount"]
[1753380148077,39.29,188.38,188.33,8.68419472]
[1753380148272,38.62,188.38,188.33,8.68419472]
[1753380148501,38.62,188.38,188.32,9.64851786]
[1753380148502,0.67,188.37,188.32,9.64851786]
[1753380148687,0.67,188.37,188.32,0.96432314]
[1753380148878,0.67,188.37,188.33,8.68419472]
[1753380149402,2.76598085,188.44,188.36,8.68419472]
[1753380149694,26.0,188.4,188.36,8.68419472]
[1753380149990,26.0,188.4,188.34,0.68]
[1753380150190,26.67,188.4,188.35,8.68419472]
[1753380150391,26.67,188.4,188.34,0.68]
[1753380150392,48.01419472,188.39,188.33,8.68419472]
[1753380150598,39.33,188.39,188.34,8.68419472]
[1753380150772,38.66,188.39,188.36,8.68419472]
[1753380150972,39.33,188.39,188.35,8.68419472]
[1753380151569,38.66,188.39,188.36,8.68419472]
[1753380151874,38.66,188.39,188.36,0.68]
[1753380152099,38.66,188.39,188.36,9.36419472]
[1753380152914,38.68,188.42,188.38,8.68419472]
[1753380153078,38.68,188.42,188.41,8.68419472]
[1753380153380,38.68,188.42,188.41,13.99176862]
[1753380153580,0.67,188.5,188.42,16.78468397]
[1753380153784,9.35419472,188.5,188.45,8.68419472]
[1753380153976,39.35,188.49,188.45,8.68419472]
[1753380154182,39.35,188.49,188.43,0.28432314]
[1753380154377,39.35,188.49,188.44,8.68419472]
[1753380154694,10.22399472,188.51,188.45,8.68419472]
[1753380154896,38.68,188.5,188.49,8.68419472]
[1753380155394,38.68,188.5,188.48,8.68419472]
[1753380156182,38.68,188.5,188.46,5.98605618]
[1753380156998,38.68,188.5,188.46,0.96432314]
[1753380157196,38.68,188.5,188.46,6.27042545]
[1753380157394,38.68,188.5,188.47,0.68]
[1753380157580,38.68,188.5,188.46,5.59042545]
[1753380157581,38.68,188.5,188.48,0.68]
[1753380157779,38.64,188.52,188.49,9.36419472]
[1753380157980,8.68419472,188.59,188.51,8.68419472]
[1753380158177,0.03,188.6,188.57,8.68419472]
[1753380158401,38.64,188.59,188.57,8.68419472]
[1753380158591,38.64,188.59,188.56,8.68419472]
[1753380158796,39.31,188.59,188.56,8.68419472]
[1753380159785,38.64,188.59,188.57,8.68419472]
[1753380160595,38.64,188.59,188.53,0.68]
[1753380160793,0.67,188.58,188.53,8.68419472]
[1753380161108,0.67,188.57,188.5,16.78468397]
[1753380161306,73.28419472,188.56,188.5,8.68419472]
[1753380161496,78.58771683,188.56,188.51,8.68419472]
[1753380161801,0.67,188.55,188.51,8.68419472]
[1753380162004,9.35419472,188.54,188.48,8.68419472]
[1753380162205,39.27,188.53,188.48,8.68419472]
[1753380162399,0.67,188.52,188.48,8.68419472]
[1753380163305,0.67,188.51,188.47,8.68419472]
[1753380163497,38.6,188.5,188.47,8.68419472]
[1753380164390,39.27,188.5,188.47,8.68419472]
[1753380164701,38.6,188.5,188.47,8.68419472]
[1753380164906,39.27,188.5,188.46,8.68419472]
[1753380165206,0.67,188.49,188.44,0.68]
[1753380165418,9.35419472,188.48,188.41,0.68]
[1753380165582,53.22007894,188.47,188.41,8.68419472]
[1753380165899,39.23,188.47,188.42,8.68419472]
[1753380166209,0.67,188.46,188.42,8.68419472]
[1753380166721,38.58,188.46,188.44,8.68419472]
[1753380166905,38.58,188.46,188.43,9.36419472]
[1753380167109,38.58,188.46,188.44,8.68419472]
[1753380167519,38.58,188.47,188.44,8.68419472]
[1753380167812,26.0,188.49,188.46,8.68419472]
[1753380168007,38.58,188.48,188.45,8.68419472]
[1753380168812,39.25,188.48,188.44,8.68419472]
[1753380169504,0.67,188.47,188.44,8.68419472]
[1753380169808,43.88572102,188.48,188.41,0.96432314]
[1753380170020,8.68419472,188.45,188.39,8.68419472]
[1753380170190,39.27,188.44,188.39,8.68419472]
[1753380170388,0.67,188.43,188.37,8.68419472]
[1753380170585,9.35419472,188.43,188.41,0.06]
[1753380171114,0.67,188.42,188.41,0.06]
[1753380171711,26.67,188.42,188.41,0.06]
[1753380171909,31.97729221,188.42,188.41,0.06]
[1753380172100,26.67,188.42,188.41,0.06]
[1753380172299,64.62,188.42,188.41,0.06]
[1753380173812,65.29,188.42,188.41,0.06]
[1753380174119,64.62,188.42,188.41,0.06]
[1753380174611,38.62,188.42,188.41,0.06]
[1753380175693,39.12,188.42,188.41,0.06]
[1753380176211,39.12,188.42,188.41,8.74419472]
[1753380177017,0.5,188.42,188.41,8.74419472]
[1753380177400,1.17,188.42,188.41,0.06]
[1753380177906,0.67,188.42,188.41,0.06]
[1753380179717,39.23,188.44,188.41,0.06]
[1753380180092,0.67,188.43,188.41,0.06]
[1753380180307,9.35419472,188.43,188.41,0.06]
[1753380180504,8.68419472,188.43,188.41,0.06]
[1753380180703,0.67,188.42,188.41,0.06]
[1753380180901,35.35419472,188.42,188.41,0.06]
[1753380181318,73.87419472,188.42,188.41,0.06]
[1753380181700,79.18148693,188.42,188.41,0.06]
[1753380182512,92.44971747,188.42,188.33,0.06]
[1753380182811,8.68419472,188.37,188.33,0.06]
[1753380183108,38.52,188.36,188.33,0.06]
[1753380183421,38.52,188.36,188.35,8.68419472]
[1753380183811,38.52,188.39,188.35,14.97778131]
[1753380184011,38.52,188.39,188.35,5.59358659]
[1753380184238,39.19,188.39,188.36,8.68419472]
[1753380184526,0.67,188.38,188.34,8.68419472]
[1753380184823,38.52,188.37,188.34,8.68419472]
[1753380185007,39.19,188.37,188.33,0.06]
[1753380185325,0.67,188.36,188.33,8.74419472]
[1753380185501,39.21,188.35,188.33,0.06]
[1753380185915,38.54,188.35,188.33,0.06]
[1753380186108,0.67,188.34,188.33,0.06]
[1753380186514,9.35419472,188.34,188.33,0.06]
[1753380186698,9.35419472,188.34,188.32,0.06]
[1753380186896,47.89419472,188.33,188.32,0.06]
[1753380187598,65.71,188.33,188.32,0.06]
[1753380187820,79.70402321,188.33,188.32,0.06]
[1753380188730,39.04,188.33,188.32,0.06]
[1753380190600,39.04,188.33,188.32,0.76]
[1753380190806,39.04,188.33,188.32,0.06]
[1753380192029,53.70402321,188.33,188.32,0.06]
[1753380192227,79.70402321,188.33,188.32,0.06]
[1753380192401,55.20862321,188.33,188.32,0.06]
[1753380195938,55.16862321,188.33,188.32,0.06]
[1753380196739,0.5,188.33,188.32,0.06]
[1753380197039,39.0,188.33,188.32,0.06]
[1753380197343,48.35419472,188.33,188.32,0.06]
[1753380198015,34.68419472,188.3,188.28,0.06]
[1753380198218,16.78468397,188.28,188.15,0.7]
[1753380198418,26.0,188.2,188.12,0.7]
[1753380198621,0.67,188.2,188.15,8.68419472]
[1753380198818,31.98355312,188.2,188.13,9.38419472]
[1753380199018,31.98355312,188.2,188.14,8.68419472]
[1753380199329,26.0,188.25,188.15,0.7]
[1753380199535,26.0,188.25,188.19,8.68419472]
[1753380199536,26.0,188.21,188.19,8.68419472]
[1753380199715,5.31182211,188.26,188.2,8.68419472]
[1753380199919,149.0,188.28,188.21,8.68419472]
[1753380199920,38.7,188.25,188.21,8.68419472]
[1753380200132,38.7,188.24,188.19,9.38419472]
[1753380200309,38.7,188.23,188.16,0.7]
[1753380200511,38.7,188.23,188.21,8.68419472]
[1753380200727,38.72,188.23,188.21,9.38419472]
[1753380200929,38.72,188.23,188.19,6.01372371]
[1753380201112,64.72,188.24,188.21,0.7]
[1753380201313,38.72,188.23,188.18,0.7]
[1753380201535,26.0,188.25,188.21,8.68419472]
[1753380201714,26.0,188.25,188.23,8.68419472]
[1753380201920,5.31094452,188.3,188.18,0.28432314]
[1753380201921,38.76,188.24,188.18,0.7]
[1753380202411,26.0,188.21,188.15,0.7]
[1753380202613,44.19375682,188.2,188.15,8.68419472]
[1753380202824,44.86375682,188.2,188.15,8.68419472]
[1753380203027,39.55,188.2,188.16,8.68419472]
[1753380203615,38.9,188.19,188.18,8.68419472]
[1753380203833,38.9,188.19,188.18,0.7]
[1753380204042,30.34597351,188.3,188.18,9.38419472]
[1753380204043,38.9,188.22,188.18,9.38419472]
[1753380204230,38.9,188.23,188.2,8.68419472]
[1753380204932,39.57,188.23,188.17,0.7]
[1753380205131,8.68419472,188.2,188.11,7.6797]
[1753380205330,8.68419472,188.18,188.11,22.37992299]
[1753380205531,38.92,188.17,188.11,22.37992299]
[1753380205732,38.92,188.17,188.12,8.68419472]
[1753380205933,38.92,188.17,188.13,9.38419472]
[1753380206342,38.92,188.17,188.12,8.68419472]
[1753380206517,44.90444093,188.17,188.12,8.68419472]
[1753380207146,44.90444093,188.17,188.11,7.6797]
[1753380207447,44.90444093,188.17,188.11,12.99573379]
[1753380207624,44.90444093,188.17,188.12,8.68419472]
[1753380207824,44.90444093,188.17,188.11,12.99573379]
[1753380208132,44.90444093,188.17,188.12,8.68419472]
[1753380208846,9.40419472,188.16,188.09,5.31660375]
[1753380209144,9.40419472,188.16,188.05,12.58741538]
[1753380209145,8.68419472,188.13,188.05,15.22895721]
[1753380209442,38.86,188.12,188.06,8.68419472]
[1753380210013,38.86,188.12,188.07,8.68419472]
[1753380210227,39.58,188.12,188.07,8.68419472]
[1753380210541,0.72,188.16,188.09,8.68419472]
[1753380210740,0.72,188.16,188.08,0.71]
[1753380210741,38.88,188.15,188.1,8.68419472]
[1753380211046,8.68419472,188.12,188.05,3.76405786]
[1753380211242,48.30419472,188.11,188.05,2.26255786]
[1753380211446,38.92,188.1,188.05,2.26255786]
[1753380211953,0.72,188.09,188.05,2.26255786]
[1753380212434,0.72,188.08,188.05,2.26255786]
[1753380212640,0.72,188.08,188.01,7.0106]
[1753380212641,39.62,188.07,188.02,8.68419472]
[1753380212842,38.9,188.07,188.03,9.39419472]
[1753380213149,38.9,188.07,188.03,0.71]
[1753380213343,38.9,188.07,188.04,8.68419472]
[1753380216127,0.72,188.07,187.99,5.31938742]
[1753380216351,8.68419472,188.04,188.01,0.06]
[1753380216540,38.92,188.03,188.01,0.06]
[1753380216846,8.68419472,188.06,188.01,8.74419472]
[1753380217059,38.9,188.05,188.02,8.68419472]
[1753380217261,38.9,188.05,188.01,0.06]
[1753380217432,39.62,188.05,188.01,8.74419472]
[1753380218132,38.9,188.05,188.01,0.06]
[1753380218332,0.72,188.04,188.01,8.74419472]
[1753380218730,0.72,188.03,188.01,0.06]
[1753380219127,44.21778625,188.05,188.01,0.06]
[1753380219128,26.72,188.02,188.01,0.06]
[1753380219450,38.98,188.02,187.99,8.68419472]
[1753380219661,39.04,188.01,187.92,17.06900711]
[1753380219864,39.04,188.01,188.0,8.68419472]
[1753380220528,0.72,188.07,188.0,14.71334365]
[1753380220753,39.04,188.06,188.01,0.71]
[1753380220936,39.04,188.06,188.02,0.71]
[1753380221248,39.54,188.06,188.02,0.71]
[1753380221425,39.54,188.06,188.0,6.02914893]
[1753380221626,39.54,188.06,188.04,8.68419472]
[1753380222133,0.5,188.06,187.99,1.5264]
[1753380222342,39.76,188.05,188.02,8.68419472]
[1753380222647,0.72,188.04,188.03,8.68419472]
[1753380222954,39.04,188.05,188.03,8.68419472]
[1753380223828,39.04,188.05,188.03,14.00240985]
[1753380224024,39.02,188.05,188.04,8.68419472]
[1753380224228,39.52,188.06,188.04,8.68419472]
[1753380224546,0.5,188.06,188.04,8.68419472]
[1753380224730,39.52,188.06,188.05,8.68419472]
[1753380224930,0.5,188.06,188.05,9.39419472]
[1753380225235,0.5,188.06,188.05,5.34586799]
[1753380226945,0.5,188.06,188.04,5.31799935]
[1753380227248,0.5,188.06,188.05,5.34586799]
[1753380228933,0.5,188.06,188.01,0.71]
[1753380229137,0.5,188.06,188.03,5.34586799]
[1753380229329,0.72,188.05,187.99,0.71]
[1753380229535,38.96,188.04,188.01,5.34586799]
[1753380229750,38.96,188.04,188.02,5.34586799]
[1753380230248,38.96,188.04,188.03,5.34586799]
[1753380230460,70.99813675,188.04,187.95,5.32055575]
[1753380230639,4.28167102,188.11,188.03,5.34586799]
[1753380230947,4.28167102,188.11,188.06,5.34586799]
[1753380230948,0.72,188.08,188.06,5.34586799]
[1753380231168,39.06,188.07,188.03,0.71]
[1753380231335,39.78,188.07,188.05,5.34586799]
[1753380231532,39.78,188.07,188.04,5.34586799]
[1753380232338,0.5,188.06,188.05,5.34586799]
[1753380232542,0.5,188.06,188.01,6.02862547]
[1753380232745,0.5,188.06,188.05,5.34586799]
[1753380234656,0.5,188.06,188.03,5.31821902]
[1753380234836,0.5,188.06,188.05,5.34586799]
[1753380235940,39.54,188.06,188.05,6.05586799]
[1753380236347,39.54,188.06,188.05,5.34586799]
[1753380237558,0.5,188.06,188.05,6.06586799]
[1753380237935,38.98,188.1,188.05,6.06586799]
[1753380238137,2.76385981,188.14,188.09,5.34586799]
[1753380238337,2.76385981,188.14,188.13,5.34586799]
[1753380238536,2.3586,188.21,188.13,6.06586799]
[1753380238755,38.98,188.2,188.17,5.34586799]
[1753380239337,0.72,188.19,188.11,1.00432314]
[1753380239539,0.72,188.19,188.14,5.34586799]
[1753380239759,44.29359541,188.2,188.15,5.34586799]
[1753380239934,45.01359541,188.2,188.15,5.34586799]
[1753380240334,0.72,188.27,188.19,10.69173598]
[1753380240539,5.31039243,188.31,188.26,5.34586799]
[1753380240770,6.03039243,188.31,188.29,5.34586799]
[1753380241066,5.3109565,188.29,188.23,0.72]
[1753380241247,5.3109565,188.29,188.27,8.6908178]
[1753380241450,0.72,188.28,188.25,8.6908178]
[1753380241648,0.72,188.3,188.27,8.6908178]
[1753380241846,39.02,188.28,188.25,0.72]
[1753380242042,2.76255562,188.32,188.25,0.72]
[1753380242249,0.03,188.33,188.25,0.72]
[1753380242450,0.03,188.33,188.27,0.28432314]
[1753380242750,0.03,188.33,188.26,0.72]
[1753380242946,0.03,188.33,188.3,8.6908178]
[1753380243169,0.5,188.32,188.3,8.6908178]
[1753380243377,0.5,188.32,188.31,9.4108178]
[1753380244441,0.5,188.32,188.31,0.72]
[1753380244665,0.5,188.32,188.31,8.6908178]
[1753380245048,0.5,188.32,188.3,8.6908178]
[1753380245244,0.5,188.32,188.31,8.6908178]
[1753380245459,0.5,188.32,188.31,9.4108178]
[1753380247662,0.03,188.33,188.31,9.4108178]
[1753380247868,0.03,188.33,188.32,9.4108178]
[1753380248170,5.33998026,188.33,188.31,8.6908178]
[1753380248347,5.33998026,188.33,188.27,0.28432314]
[1753380248348,5.33986508,188.33,188.28,0.72]
[1753380248550,5.33986508,188.33,188.31,8.6908178]
[1753380248752,0.03,188.33,188.31,8.6908178]
[1753380248968,0.03,188.33,188.32,9.4108178]
[1753380250874,0.03,188.33,188.32,18.38595874]
[1753380252075,0.03,188.33,188.32,15.00525139]
[1753380252576,0.03,188.33,188.32,23.69606919]
[1753380253690,0.03,188.37,188.34,16.78468397]
[1753380253979,5.33617255,188.46,188.38,0.28432314]
[1753380254159,5.33617255,188.46,188.44,8.6908178]
[1753380254359,6.05617255,188.46,188.44,8.6908178]
[1753380254861,0.03,188.46,188.44,8.6908178]
[1753380255378,26.0,188.44,188.37,8.6908178]
[1753380255555,8.6908178,188.42,188.36,8.6908178]
[1753380255755,0.72,188.41,188.36,8.6908178]
[1753380255958,0.72,188.4,188.36,8.6908178]
[1753380256356,9.4108178,188.39,188.31,6.211]
[1753380256565,9.4108178,188.39,188.33,8.6908178]
[1753380256958,5.30841915,188.38,188.33,8.6908178]
[1753380257172,5.30841915,188.38,188.3,0.72]
[1753380257173,0.72,188.37,188.3,0.72]
[1753380257377,0.72,188.37,188.32,8.6908178]
[1753380257576,0.72,188.37,188.3,0.72]
[1753380257577,13.99923695,188.38,188.3,0.72]
[1753380257773,0.72,188.36,188.31,8.6908178]
[1753380258166,0.72,188.36,188.32,8.6908178]
[1753380258558,9.4108178,188.35,188.26,0.72]
[1753380258777,0.72,188.34,188.28,8.6908178]
[1753380259089,5.30982849,188.33,188.28,8.6908178]
[1753380259271,0.72,188.32,188.28,8.6908178]
[1753380260890,5.30898279,188.36,188.31,8.6908178]
[1753380261068,5.30874109,188.37,188.34,8.6908178]
[1753380261272,31.30874109,188.37,188.34,8.6908178]
[1753380261774,26.0,188.37,188.35,8.6908178]
[1753380262287,26.0,188.37,188.32,0.72]
[1753380262288,31.30870096,188.37,188.32,0.72]
[1753380262466,31.30870096,188.37,188.34,8.6908178]
[1753380262663,31.30870096,188.37,188.32,0.72]
[1753380262975,31.30870096,188.37,188.34,8.6908178]
[1753380263570,31.30870096,188.37,188.32,0.72]
[1753380263571,26.0,188.37,188.35,8.6908178]
[1753380263767,31.3087812,188.37,188.35,8.6908178]
[1753380264880,31.3087812,188.37,188.32,0.72]
[1753380265186,31.3087812,188.37,188.34,8.6908178]
[1753380266664,32.0287812,188.37,188.34,8.6908178]
[1753380267066,31.3087812,188.37,188.34,8.6908178]
[1753380268773,0.03,188.42,188.36,8.6908178]
[1753380268978,0.03,188.42,188.41,8.6908178]
[1753380269373,14.71814628,188.42,188.37,8.6908178]
[1753380269570,0.69,188.41,188.37,8.6908178]
[1753380269890,0.03,188.42,188.4,8.6908178]
[1753380270085,0.03,188.42,188.38,0.7]
[1753380270086,0.03,188.42,188.39,8.6908178]
[1753380270287,0.72,188.42,188.39,8.6908178]
[1753380270868,0.03,188.42,188.39,9.3908178]
[1753380271064,0.03,188.42,188.39,8.6908178]
[1753380271271,0.03,188.42,188.41,8.6908178]
[1753380271700,0.03,188.42,188.4,8.6908178]
[1753380271995,0.69,188.41,188.34,0.7]
[1753380272291,13.99867342,188.4,188.32,0.7]
[1753380272506,9.3808178,188.39,188.33,8.6908178]
[1753380272706,34.6908178,188.37,188.31,8.6908178]
[1753380272874,8.6908178,188.36,188.3,8.6908178]
[1753380273075,9.3808178,188.35,188.26,0.7]
[1753380273274,8.6908178,188.31,188.25,8.6908178]
[1753380273599,8.6908178,188.27,188.2,0.76]
[1753380273777,9.3808178,188.26,188.2,8.7508178]
[1753380274090,0.69,188.26,188.22,8.6908178]
[1753380274295,34.6908178,188.28,188.22,8.6908178]
[1753380274588,39.53,188.29,188.25,8.6908178]
[1753380274992,39.53,188.29,188.26,8.6908178]
[1753380275784,26.0,188.29,188.27,8.6908178]
[1753380276094,44.84014394,188.32,188.27,8.6908178]
[1753380276309,6.0005852,188.31,188.24,6.01233481]
[1753380277105,6.0005852,188.31,188.26,8.6908178]
[1753380277106,0.69,188.3,188.26,8.6908178]
[1753380277414,0.69,188.29,188.24,8.6908178]
[1753380277584,8.6908178,188.29,188.23,8.6908178]
[1753380277901,0.69,188.28,188.23,8.6908178]
[1753380278107,0.69,188.27,188.23,8.6908178]
[1753380278277,0.69,188.26,188.23,8.6908178]
[1753380278472,26.0,188.28,188.24,8.6908178]
[1753380278695,26.0,188.27,188.24,8.6908178]
[1753380278880,5.31100894,188.29,188.25,8.6908178]
[1753380279296,44.15025106,188.32,188.25,0.7]
[1753380279598,52.84106886,188.32,188.25,0.7]
[1753380279791,38.84,188.32,188.29,8.6908178]
[1753380279969,38.84,188.32,188.22,0.28432314]
[1753380279970,38.84,188.34,188.3,8.6908178]
[1753380280170,0.69,188.33,188.3,8.6908178]
[1753380280588,2.76699525,188.36,188.32,8.6908178]
[1753380280775,2.76699525,188.36,188.35,8.6908178]
[1753380281182,28.76699525,188.36,188.35,8.6908178]
[1753380281593,38.84,188.39,188.35,8.6908178]
[1753380281780,38.84,188.39,188.37,8.6908178]
[1753380281986,38.84,188.39,188.31,0.7]
[1753380282184,38.84,188.39,188.37,8.6908178]
[1753380282392,44.14821441,188.39,188.37,8.6908178]
[1753380282589,38.84,188.39,188.37,8.6908178]
[1753380283005,64.84,188.39,188.37,8.6908178]
[1753380283308,0.69,188.38,188.35,8.6908178]
[1753380283499,0.69,188.37,188.35,8.6908178]
[1753380283703,70.14817321,188.39,188.35,8.6908178]
[1753380283882,70.83817321,188.39,188.31,0.7]
[1753380284078,26.0,188.37,188.36,8.6908178]
[1753380284896,26.0,188.38,188.33,0.7]
[1753380285107,26.0,188.38,188.34,6.00926923]
[1753380285405,26.0,188.38,188.35,0.7]
[1753380285796,64.82,188.41,188.37,8.6908178]
[1753380286115,64.82,188.41,188.4,8.6908178]
[1753380286680,38.82,188.41,188.4,8.6908178]
[1753380286996,64.82,188.41,188.4,8.6908178]
[1753380288184,26.0,188.41,188.4,8.6908178]
[1753380288390,26.0,188.41,188.4,9.3908178]
[1753380288612,0.03,188.42,188.4,9.3908178]
[1753380288786,26.03,188.42,188.41,8.6908178]
[1753380288982,0.03,188.42,188.41,8.6908178]
[1753380289184,0.03,188.42,188.41,9.3908178]
[1753380289413,0.03,188.42,188.41,8.6908178]
[1753380291683,43.2578185,188.44,188.42,8.6908178]
[1753380292603,37.95100739,188.44,188.42,8.6908178]
[1753380293090,37.95100739,188.44,188.43,8.6908178]
[1753380293290,43.25773632,188.44,188.43,8.6908178]
[1753380293607,43.25773632,188.44,188.42,8.6908178]
[1753380293987,9.3808178,188.43,188.35,0.7]
[1753380294185,26.0,188.4,188.35,0.7]
[1753380294386,26.0,188.4,188.39,8.6908178]
[1753380295418,26.69,188.4,188.37,8.6908178]
[1753380295914,26.0,188.4,188.37,8.6908178]
[1753380296084,26.0,188.4,188.39,8.6908178]
[1753380296487,26.0,188.4,188.38,8.6908178]
[1753380297111,38.64,188.42,188.39,8.6908178]
[1753380297314,38.64,188.42,188.4,9.3908178]
[1753380297511,38.64,188.42,188.39,8.6908178]
[1753380297810,44.61739667,188.42,188.39,8.6908178]
[1753380298110,5.30674669,188.44,188.41,8.6908178]
[1753380298314,38.62,188.44,188.42,8.6908178]
[1753380299006,26.0,188.45,188.43,0.69]
[1753380299316,0.03,188.46,188.44,8.6908178]
[1753380299496,0.03,188.46,188.45,8.6908178]
[1753380299693,0.03,188.46,188.44,0.69]
[1753380299891,0.03,188.46,188.45,8.6908178]
[1753380300412,0.7,188.46,188.44,8.6908178]
[1753380300590,0.03,188.46,188.45,8.6908178]
[1753380301006,0.03,188.46,188.44,8.6908178]
[1753380301210,0.03,188.46,188.45,8.6908178]
[1753380301401,0.03,188.46,188.45,9.3808178]
[1753380302617,0.03,188.46,188.45,31.75627224]
[1753380302818,0.03,188.5,188.47,0.28432314]
[1753380303113,0.03,188.5,188.49,25.75982491]
[1753380303615,0.03,188.5,188.49,26.44982491]
[1753380303992,0.2,188.52,188.51,0.28432314]
[1753380304195,0.2,188.52,188.51,26.44982491]
[1753380304597,0.2,188.52,188.51,31.75458327]
[1753380305319,0.03,188.57,188.51,53.70729699]
[1753380305501,0.03,188.57,188.56,8.6908178]
[1753380305707,0.03,188.6,188.57,16.78468397]
[1753380305922,0.03,188.6,188.59,25.75982491]
[1753380306221,0.2,188.61,188.6,17.06900711]
[1753380306422,0.2,188.61,188.6,26.44982491]
[1753380306725,0.03,188.64,188.62,17.06900711]
[1753380306905,0.03,188.68,188.64,17.06900711]
[1753380307108,0.03,188.68,188.67,8.6908178]
[1753380307576,0.03,188.68,188.67,9.3808178]
[1753380307826,0.03,188.68,188.67,26.16550177]
[1753380308209,0.03,188.68,188.67,26.44982491]
[1753380308802,0.03,188.68,188.67,31.75008462]
[1753380309499,0.03,188.68,188.67,70.35008462]
[1753380309898,0.03,188.68,188.67,9.3808178]
[1753380310103,0.03,188.68,188.64,16.78468397]
[1753380310404,0.03,188.68,188.67,8.6908178]
[1753380312199,0.03,188.68,188.67,15.21110348]
[1753380312401,0.03,188.68,188.67,14.96540065]
[1753380312813,0.03,188.68,188.67,8.6908178]
[1753380313602,0.03,188.68,188.67,9.3808178]
[1753380314018,0.03,188.68,188.67,8.6908178]
[1753380316804,0.03,188.68,188.64,39.21]
[1753380317009,0.67,188.67,188.63,8.6908178]
[1753380317425,0.03,188.68,188.66,8.6908178]
[1753380317633,0.03,188.68,188.67,8.6908178]
[1753380318929,0.03,188.68,188.66,8.6908178]
[1753380319434,35.3608178,188.67,188.59,0.69]
[1753380319631,35.3608178,188.67,188.6,8.6908178]
[1753380319632,0.67,188.66,188.6,8.6908178]
[1753380319831,0.03,188.68,188.65,8.6908178]
[1753380320134,0.03,188.68,188.67,8.6908178]
[1753380321135,0.03,188.68,188.67,9.3808178]
[1753380322423,0.03,188.68,188.67,8.6908178]
[1753380323122,0.03,188.68,188.67,9.3808178]
[1753380323421,0.03,188.68,188.67,8.6908178]
[1753380323809,0.03,188.68,188.67,9.3808178]
[1753380324010,0.03,188.68,188.67,14.68107751]
[1753380324232,0.03,188.68,188.67,31.46576148]
[1753380324811,0.03,188.7,188.68,17.06900711]
[1753380325006,0.03,188.7,188.69,25.47550177]
[1753380325232,0.03,188.7,188.69,31.74952282]
[1753380327014,0.03,188.74,188.73,16.78468397]
[1753380327221,0.03,188.74,188.73,25.47550177]
[1753380327436,0.03,188.74,188.73,26.43982491]
[1753380329233,0.03,188.74,188.73,31.73839959]
[1753380329908,0.03,188.75,188.73,42.61277485]
[1753380330142,0.03,188.75,188.74,34.84631957]
[1753380331137,0.03,188.75,188.74,69.85379571]
[1753380331821,0.03,188.75,188.74,70.13811885]
[1753380332525,0.03,188.75,188.74,64.83982491]
[1753380332715,0.03,188.75,188.74,70.13811885]
[1753380333118,0.2,188.78,188.75,17.06900711]
[1753380333427,0.2,188.78,188.77,8.97514094]
[1753380333641,0.2,188.78,188.77,47.39514094]
[1753380333818,0.2,188.78,188.77,48.07514094]
[1753380334918,0.2,188.78,188.77,64.85982491]
[1753380335125,0.2,188.79,188.78,22.08185528]
[1753380335421,0.03,188.83,188.78,31.73699622]
[1753380335641,0.03,188.83,188.82,25.47550177]
[1753380335815,0.03,188.83,188.82,25.75982491]
[1753380336011,0.03,188.83,188.82,26.43982491]
[1753380337439,0.03,188.83,188.82,31.73587405]
[1753380338039,0.03,188.83,188.82,8.6908178]
[1753380338240,0.71,188.83,188.82,8.6908178]
[1753380338472,0.71,188.83,188.79,38.4]
[1753380338634,0.71,188.83,188.82,8.6908178]
[1753380338941,0.68,188.82,188.81,8.6908178]
[1753380339144,0.68,188.82,188.78,38.4]
[1753380339319,26.0,188.8,188.75,8.6908178]